bitfinex/quotes_ETHUSD_20240603
["timestamp","ask_amount","ask_price","bid_price","bid_amount"]
[1717430279009,0.1267024,3795.7,3795.2,1.82364468]
[1717430279213,0.02511367,3795.6,3795.0,0.00625519]
[1717430279470,0.1267024,3795.7,3795.0,0.00625519]
[1717430279759,2.7613224,3795.7,3795.0,0.00625519]
[1717430279959,0.02537364,3795.6,3795.0,0.00625519]
[1717430280116,0.5145596,3795.5,3795.0,0.00625519]
[1717430280660,0.02725587,3795.4,3795.0,0.00625519]
[1717430281632,0.1267024,3795.7,3795.0,0.00625519]
[1717430281828,0.1267024,3795.7,3795.1,1.32126577]
[1717430282354,0.1267024,3795.7,3795.2,2.6349]
[1717430282355,0.02877634,3795.6,3795.2,2.6349]
[1717430282561,0.1267024,3795.7,3795.3,3.0]
[1717430282762,0.1267024,3795.7,3795.1,1.32126577]
[1717430282763,0.1267024,3795.7,3795.0,0.00625519]
[1717430282977,2.63486,3795.3,3795.0,0.00625519]
[1717430283755,2.63497,3795.1,3795.0,0.00625519]
[1717430283960,3.18497,3795.1,3795.0,0.00625519]
[1717430284141,2.63497,3795.1,3795.0,0.00625519]
[1717430284654,2.898467,3795.1,3795.0,0.00625519]
[1717430284836,5.982467,3795.1,3795.0,0.00625519]
[1717430286057,10.30373277,3795.1,3795.0,0.00625519]
[1717430286276,12.93870277,3795.1,3795.0,5.19e-06]
[1717430286584,12.93870277,3795.1,3793.1,0.0645]
[1717430286585,2.6359,3793.8,3793.1,0.0645]
[1717430287763,2.1959,3793.8,3793.1,0.0645]
[1717430288986,2.63607,3793.6,3793.1,0.0645]
[1717430289694,2.63571,3794.1,3793.1,1.38576577]
[1717430290000,2.63571,3794.1,3793.2,0.13857658]
[1717430290198,2.63571,3794.1,3793.1,1.38576577]
[1717430290568,2.63571,3794.1,3793.1,0.0645]
[1717430291094,2.63571,3794.1,3793.2,1.32126577]
[1717430291264,2.63534,3794.6,3793.2,1.32126577]
[1717430291678,2.63534,3794.6,3793.3,2.63616]
[1717430291863,2.63503,3795.1,3793.5,2.63608]
[1717430292062,2.63503,3795.1,3793.6,4.32126577]
[1717430292357,2.63526,3794.7,3793.6,4.32126577]
[1717430292567,2.63554,3794.3,3793.6,3.0]
[1717430292771,2.63554,3794.3,3793.1,3.0645]
[1717430292981,2.63554,3794.3,3793.2,1.89135377]
[1717430293364,2.63581,3793.9,3793.1,0.0645]
[1717430297277,2.63607,3793.6,3793.1,0.0645]
[1717430297787,2.63574,3794.0,3792.4,0.05273127]
[1717430297985,0.20435283,3794.1,3793.0,2.63643]
[1717430298295,0.20435283,3794.1,3793.2,2.2911]
[1717430298634,0.20435283,3794.1,3793.3,2.24614535]
[1717430299195,0.20435283,3794.1,3793.3,5.24614535]
[1717430300725,0.20435283,3794.1,3793.3,4.32126577]
[1717430300924,0.20435283,3794.1,3793.3,1.32126577]
[1717430302127,2.63574,3794.0,3793.3,1.32126577]
[1717430303519,0.20435283,3794.1,3793.3,1.32126577]
[1717430304700,0.20435283,3794.1,3793.4,2.2584]
[1717430304897,2.63522,3794.8,3793.5,0.35796658]
[1717430305133,2.63522,3794.8,3793.6,1.32126577]
[1717430306227,2.63522,3794.8,3793.6,3.95727577]
[1717430306442,2.63522,3794.8,3793.7,3.0]
[1717430306590,2.63493,3795.2,3793.9,2.6358]
[1717430306792,2.63493,3795.2,3794.0,5.01697235]
[1717430308805,2.63493,3795.2,3794.1,2.63565]
[1717430309004,2.63493,3795.2,3794.2,4.32126577]
[1717430309229,2.63466,3795.6,3794.3,2.63551]
[1717430309431,2.63466,3795.6,3794.4,6.80106577]
[1717430309648,0.1267024,3795.7,3794.9,2.63511]
[1717430309803,0.1267024,3795.7,3795.0,1.32126577]
[1717430310206,0.1267024,3795.7,3795.0,4.32126577]
[1717430310627,0.1267024,3795.7,3794.5,1.24365758]
[1717430310916,2.63486,3795.3,3794.6,1.32126577]
[1717430313803,2.63486,3795.3,3794.3,3.0]
[1717430314002,2.63486,3795.3,3794.4,1.32126577]
[1717430314742,2.7612924,3795.7,3794.5,2.63539]
[1717430314919,2.7612924,3795.7,3794.6,2.01693135]
[1717430315118,2.7612924,3795.7,3794.6,5.01693135]
[1717430316064,0.1267024,3795.7,3795.0,2.63502]
[1717430316202,0.1267024,3795.7,3795.1,4.32126577]
[1717430317732,2.63469,3795.6,3794.6,3.69566558]
[1717430317917,2.63469,3795.6,3794.7,1.32126577]
[1717430318134,2.63469,3795.6,3794.7,4.82295891]
[1717430318332,0.1267024,3795.7,3794.7,4.45817891]
[1717430318507,0.1267024,3795.7,3794.8,3.0]
[1717430318708,0.1267024,3795.7,3794.9,1.32126577]
[1717430321616,0.1267024,3795.7,3795.0,2.63504]
[1717430321820,0.1267024,3795.7,3795.1,5.0221659]
[1717430322211,0.1267024,3795.7,3795.2,2.4069]
[1717430322557,0.1267024,3795.7,3795.3,3.95605577]
[1717430322736,0.1267024,3795.7,3795.4,3.0]
[1717430322944,0.1267024,3795.7,3795.5,1.32126577]
[1717430323249,0.1267024,3795.7,3795.6,0.69560558]
[1717430323408,0.1267024,3795.7,3795.6,2.01687135]
[1717430325467,0.1267024,3795.7,3795.6,4.79487135]
[1717430325755,0.1267024,3795.7,3795.6,7.79487135]
[1717430326947,0.19841512,3797.3,3795.6,7.79487135]
[1717430327248,0.19841512,3797.3,3796.1,1.32126577]
[1717430327650,0.19841512,3797.3,3796.1,4.32126577]
[1717430328011,0.19841512,3797.3,3796.5,2.63399]
[1717430328218,0.01,3797.8,3796.9,1.32126577]
[1717430329030,0.01,3797.8,3797.0,2.63364]
[1717430329231,0.01,3797.8,3797.1,4.32126577]
[1717430329756,0.01,3797.8,3797.1,1.32126577]
[1717430330915,2.63315,3797.8,3796.7,3.0]
[1717430331112,2.63315,3797.8,3796.7,4.32126577]
[1717430332217,2.63334,3797.5,3796.8,1.32126577]
[1717430332422,2.63334,3797.5,3796.8,1.75339235]
[1717430332661,2.63334,3797.5,3796.8,1.32126577]
[1717430333867,2.63307,3797.9,3796.8,1.32126577]
[1717430334864,2.63327,3797.6,3796.3,3.0]
[1717430335068,2.63327,3797.6,3796.4,1.32126577]
[1717430335282,2.63327,3797.6,3796.6,2.63391]
[1717430335425,2.63327,3797.6,3796.7,1.32126577]
[1717430335775,2.63327,3797.6,3796.7,4.32126577]
[1717430335933,2.63283,3798.2,3796.8,2.63378]
[1717430336114,0.263283,3798.1,3796.9,1.32126577]
[1717430336323,2.4602,3798.5,3796.9,1.32126577]
[1717430336533,5.4602,3798.5,3796.9,1.32126577]
[1717430336832,2.63296,3798.0,3797.0,2.63365]
[1717430337031,2.63296,3798.0,3797.1,1.32126577]
[1717430337573,2.63271,3798.4,3797.2,2.63348]
[1717430337757,2.63244,3798.8,3797.4,2.63336]
[1717430337971,2.63244,3798.8,3797.6,2.63322]
[1717430338274,2.63244,3798.8,3797.7,1.32126577]
[1717430339270,2.63272,3798.4,3797.1,5.63357]
[1717430339579,2.63272,3798.4,3797.2,1.32126577]
[1717430339796,2.63272,3798.4,3797.3,0.65533283]
[1717430339931,2.63272,3798.4,3797.4,1.32126577]
[1717430341876,0.02467302,3798.3,3797.4,1.32126577]
[1717430342231,0.02467302,3798.3,3796.6,2.63391]
[1717430342232,2.34717302,3798.3,3796.6,2.63391]
[1717430342430,2.63328,3797.6,3796.4,2.4544]
[1717430342634,1.901,3798.1,3796.2,2.63419]
[1717430342635,2.6335,3797.3,3796.2,2.63419]
[1717430342875,2.6335,3797.3,3795.8,2.63448]
[1717430343436,2.6335,3797.3,3795.9,1.32126577]
[1717430344463,2.6335,3797.3,3796.0,2.63429]
[1717430344665,2.6335,3797.3,3796.2,2.63418]
[1717430344828,2.63317,3797.7,3796.4,2.63406]
[1717430345173,2.63317,3797.7,3796.5,4.32126577]
[1717430345884,2.8676073,3798.2,3796.7,2.63379]
[1717430346092,0.02665658,3797.6,3797.0,2.63363]
[1717430346274,0.02665658,3797.6,3796.8,4.32126577]
[1717430346275,2.63255,3798.6,3797.2,2.63348]
[1717430346489,0.02503025,3798.5,3797.3,1.32126577]
[1717430346652,0.02503025,3798.5,3797.3,4.32126577]
[1717430346852,0.26575803,3798.4,3797.3,4.32126577]
[1717430347101,0.02477928,3798.3,3797.3,4.32126577]
[1717430347647,0.02477928,3798.3,3797.4,2.63336]
[1717430347850,2.63255,3798.6,3797.6,2.2645]
[1717430348051,0.02465635,3798.5,3797.7,1.32126577]
[1717430348350,2.63255,3798.6,3797.7,4.32126577]
[1717430348549,0.263255,3798.5,3797.7,4.32126577]
[1717430348749,0.263255,3798.5,3797.7,1.32126577]
[1717430348961,0.263255,3798.5,3797.2,2.6335]
[1717430349160,0.263255,3798.5,3796.7,2.6338]
[1717430349161,2.63296,3798.1,3796.7,2.6338]
[1717430349395,2.63296,3798.1,3796.8,1.32126577]
[1717430349557,2.63307,3797.9,3796.9,2.68637124]
[1717430349766,2.63307,3797.9,3797.0,1.32126577]
[1717430349975,0.02344871,3797.8,3796.9,2.6337]
[1717430350317,0.02485739,3797.7,3796.9,3.95496577]
[1717430350461,2.896377,3797.9,3796.9,3.95496577]
[1717430350665,0.024834,3797.8,3796.9,3.95496577]
[1717430351198,2.896377,3797.9,3796.9,3.95496577]
[1717430351905,0.02465854,3797.8,3797.1,2.63358]
[1717430352119,0.02465854,3797.8,3797.4,2.63331]
[1717430352270,2.63247,3798.8,3797.6,2.63324]
[1717430352458,2.63247,3798.8,3797.7,1.32126577]
[1717430352651,0.02331732,3798.7,3797.8,2.6331]
[1717430352877,0.02331732,3798.7,3797.9,4.32126577]
[1717430353503,0.28889605,3798.7,3797.9,4.32126577]
[1717430354302,2.3968,3798.5,3796.2,2.3245]
[1717430354526,2.3968,3798.5,3796.5,1.32126577]
[1717430354728,0.57333454,3798.4,3796.5,1.32126577]
[1717430354856,0.29701345,3798.3,3796.6,0.23754258]
[1717430355058,2.63301,3798.0,3797.0,2.63363]
[1717430355316,0.02473327,3797.9,3797.0,3.95489577]
[1717430355993,2.6331,3797.8,3797.0,1.32126577]
[1717430357670,2.6331,3797.8,3796.7,3.0]
[1717430357851,2.63331,3797.5,3796.8,1.32126577]
[1717430358698,2.63331,3797.5,3796.2,4.95867]
[1717430358896,2.63331,3797.5,3796.3,1.32126577]
[1717430359397,2.63331,3797.5,3796.3,4.32126577]
[1717430360500,2.9434,3797.4,3796.3,1.32126577]
[1717430360698,2.63355,3797.2,3796.3,1.32126577]
[1717430361055,2.9434,3797.4,3795.8,2.63443]
[1717430361397,2.63355,3797.2,3796.0,2.63433]
[1717430361695,2.63355,3797.2,3796.2,2.63417]
[1717430361896,2.63355,3797.2,3796.3,5.01680935]
[1717430362683,2.63355,3797.2,3796.3,4.32126577]
[1717430363366,0.8288569,3797.8,3796.4,1.32126577]
[1717430363367,0.8288569,3797.6,3796.4,1.32126577]
[1717430363704,2.63322,3797.7,3796.4,1.32126577]
[1717430363920,2.63322,3797.7,3796.7,2.63383]
[1717430364060,3.55067035,3798.3,3796.8,4.32126577]
[1717430364061,2.63294,3798.1,3796.8,4.32126577]
[1717430364308,2.63294,3798.1,3797.0,2.63363]
[1717430364545,2.63294,3798.1,3797.1,4.32126577]
[1717430364711,2.63294,3798.1,3797.2,2.63349]
[1717430365047,0.26557873,3798.7,3797.1,3.0]
[1717430365048,2.63312,3797.8,3797.1,3.0]
[1717430365224,2.63312,3797.8,3796.8,2.63374]
[1717430365225,2.63312,3797.8,3796.9,3.0]
[1717430365428,2.63312,3797.8,3796.9,4.32126577]
[1717430365628,2.63336,3797.5,3796.9,3.0]
[1717430365831,0.263336,3797.4,3796.5,3.0]
[1717430366045,0.263336,3797.4,3796.5,4.32126577]
[1717430366718,1.10514253,3797.9,3796.6,3.95516577]
[1717430366719,3.4618969,3797.9,3796.6,3.95516577]
[1717430366914,2.63304,3797.9,3796.8,2.63376]
[1717430367118,2.63304,3797.9,3796.9,4.32126577]
[1717430369958,2.63327,3797.6,3796.9,3.0]
[1717430370140,2.6334,3797.4,3796.5,4.054121]
[1717430370356,2.6334,3797.4,3796.5,5.37538677]
[1717430370357,3.4622569,3797.4,3796.5,5.37538677]
[1717430370558,3.4622569,3797.4,3796.5,4.32126577]
[1717430370940,0.8288569,3797.6,3796.6,3.95519577]
[1717430371267,0.8288569,3797.6,3796.7,3.69551958]
[1717430371466,0.8288569,3797.5,3796.7,4.32126577]
[1717430371859,3.4621969,3797.5,3796.7,3.0]
[1717430372044,3.4621969,3797.5,3796.8,1.32126577]
[1717430372361,3.22779955,3797.5,3796.8,1.32126577]
[1717430372574,3.22779955,3797.5,3796.7,3.0]
[1717430372889,0.8288569,3797.4,3796.7,3.0]
[1717430373391,4.33294208,3797.5,3796.7,3.0]
[1717430373392,0.8288569,3797.3,3796.7,3.0]
[1717430374067,2.63352,3797.2,3796.2,2.63416]
[1717430374268,0.34623769,3797.1,3796.3,3.0]
[1717430374480,2.63369,3797.0,3796.3,3.0]
[1717430374680,2.63369,3797.0,3796.1,1.054231]
[1717430374905,3.4625469,3797.0,3796.1,1.054231]
[1717430375054,0.34623769,3797.1,3796.1,1.054231]
[1717430375055,2.63385,3796.8,3796.1,1.054231]
[1717430375372,4.11225521,3796.8,3795.8,2.63444]
[1717430375570,4.11225521,3796.8,3795.8,3.95570577]
[1717430375763,3.4627069,3796.8,3795.9,1.32126577]
[1717430375936,2.63385,3796.8,3795.9,1.32126577]
[1717430376637,2.63385,3796.8,3795.9,4.32126577]
[1717430379200,2.63385,3796.8,3796.0,2.63432]
[1717430379358,2.63385,3796.8,3796.1,4.32126577]
[1717430379675,2.63385,3796.8,3796.1,3.0]
[1717430379848,3.01474446,3796.8,3796.1,3.0]
[1717430380438,1.17509459,3797.1,3796.2,1.32126577]
[1717430380667,5.32004855,3797.3,3796.2,1.32126577]
[1717430380668,0.8288569,3797.2,3796.2,1.32126577]
[1717430380839,3.4623669,3797.3,3796.2,1.32126577]
[1717430381036,4.3656434,3797.3,3796.2,1.32126577]
[1717430382837,4.3656434,3797.3,3796.3,2.63413]
[1717430383147,3.5367865,3797.3,3796.3,2.63413]
[1717430383568,4.3656434,3797.3,3796.3,2.63413]
[1717430383966,0.59445955,3797.5,3796.5,2.63396]
[1717430384164,2.97948564,3797.6,3796.6,1.32126577]
[1717430384340,1.19771594,3797.5,3796.6,1.32126577]
[1717430384566,1.76695969,3797.5,3796.6,1.32126577]
[1717430384941,1.19771594,3797.5,3796.6,1.32126577]
[1717430385140,3.20249812,3797.6,3796.6,1.32126577]
[1717430385469,0.8288569,3797.7,3796.7,2.4889]
[1717430385773,0.569213,3797.7,3796.8,1.32126577]
[1717430385980,0.56917008,3797.9,3796.8,4.32126577]
[1717430386181,5.55481947,3798.0,3797.0,2.63364]
[1717430386379,2.97944902,3797.9,3797.0,3.95490577]
[1717430386551,0.8288569,3797.8,3797.0,3.95490577]
[1717430386988,2.97944902,3797.9,3797.0,3.95490577]
[1717430387189,0.72291581,3797.8,3797.0,3.95490577]
[1717430387482,2.12096881,3797.8,3797.0,3.95490577]
[1717430387685,2.63318,3797.7,3796.8,3.0]
[1717430387884,2.63318,3797.7,3796.6,2.63389]
[1717430387885,4.21473602,3797.5,3796.7,3.0]
[1717430388072,1.39810568,3797.4,3796.7,3.0]
[1717430388277,1.27679842,3797.3,3796.7,3.0]
[1717430388479,0.8288569,3797.5,3796.8,3.81346577]
[1717430388727,2.41025292,3797.8,3797.0,2.63365]
[1717430389022,0.1377743,3797.8,3797.0,2.63365]
[1717430389320,0.1377743,3797.8,3797.1,3.0]
[1717430390909,0.8288569,3797.9,3797.3,2.63344]
[1717430391117,0.8288569,3798.1,3797.4,1.32126577]
[1717430391287,0.8288569,3798.1,3797.3,2.63344]
[1717430391288,1.18039644,3798.1,3797.3,2.63344]
[1717430391614,1.18039644,3798.1,3797.3,3.95470577]
[1717430391772,2.76179246,3798.1,3797.3,3.95470577]
[1717430392111,0.35153954,3798.1,3797.3,3.95470577]
[1717430392319,0.35153954,3798.1,3797.4,1.32126577]
[1717430392609,3.4616569,3798.3,3797.4,1.32126577]
[1717430392820,3.4616569,3798.3,3797.3,2.63344]
[1717430393191,0.8288569,3798.2,3797.3,2.63344]
[1717430395563,0.8288569,3798.2,3797.4,1.32126577]
[1717430395680,0.8288569,3798.4,3797.4,1.32126577]
[1717430395874,1.5808794,3798.6,3797.5,0.54826658]
[1717430396122,0.8288569,3798.7,3797.6,1.32126577]
[1717430396618,0.8288569,3798.6,3797.6,1.32126577]
[1717430396806,0.8288569,3798.7,3797.7,0.18695324]
[1717430396986,0.8288569,3798.7,3797.8,1.32126577]
[1717430397221,0.8288569,3798.7,3797.9,2.633]
[1717430397389,0.8288569,3798.8,3797.9,3.0471219]
[1717430397926,0.8288569,3799.0,3797.9,2.633]
[1717430398281,0.8288569,3798.9,3797.9,2.633]
[1717430399375,0.8288569,3798.9,3798.0,1.32126577]
[1717430399581,0.8288569,3798.9,3798.2,2.63282]
[1717430400006,0.8288569,3799.1,3798.3,3.0]
[1717430400844,0.82641077,3799.1,3798.3,3.69540858]
[1717430402936,0.1267024,3799.5,3798.3,3.69540858]
[1717430403242,0.55,3799.4,3798.3,3.69540858]
[1717430403441,0.55,3799.4,3798.4,2.63264]
[1717430403640,0.55,3799.4,3798.5,3.0]
[1717430403946,0.55,3799.4,3798.6,0.63280486]
[1717430404845,0.1267024,3799.5,3798.7,2.63246]
[1717430405050,0.1267024,3799.5,3798.8,3.0]
[1717430405199,0.1267024,3799.5,3798.9,2.63234]
[1717430405634,0.1267024,3799.5,3799.0,3.0]
[1717430405835,0.1267024,3799.5,3799.1,0.863234]
[1717430406539,0.1267024,3799.5,3799.0,3.0]
[1717430407320,0.1267024,3799.5,3798.5,2.6326]
[1717430408201,0.1267024,3799.5,3798.8,2.63237]
[1717430409098,0.1267024,3799.5,3798.9,3.0]
[1717430409299,0.1267024,3799.5,3798.4,2.63265]
[1717430409602,2.6321,3799.3,3798.4,2.63265]
[1717430409916,2.63221,3799.1,3798.0,2.63292]
[1717430410117,0.55,3799.0,3798.0,2.63292]
[1717430410312,0.55,3799.0,3798.1,1.32126577]
[1717430410547,0.1267024,3799.5,3798.8,2.6324]
[1717430411348,0.1267024,3799.5,3798.9,3.0]
[1717430411518,0.1267024,3799.5,3799.0,0.79661]
[1717430411880,0.1267024,3799.5,3798.9,3.0]
[1717430413219,0.1267024,3799.5,3799.0,2.63224]
[1717430413566,0.1267024,3799.5,3799.3,2.63201]
[1717430415284,0.1267024,3799.5,3799.4,1.32126577]
[1717430415420,0.1267024,3799.5,3799.3,3.95327577]
[1717430415787,0.1267024,3799.5,3799.4,0.62913758]
[1717430416121,0.1267024,3799.5,3799.3,2.63201]
[1717430416456,0.1267024,3799.5,3799.3,3.95327577]
[1717430417239,0.1267024,3799.5,3799.4,1.32126577]
[1717430417871,0.1267024,3799.5,3799.4,4.32126577]
[1717430418029,0.1267024,3799.5,3799.4,6.22026577]
[1717430418224,0.1267024,3799.5,3799.4,7.33930335]
[1717430419347,0.1267024,3799.5,3799.4,5.44030335]
[1717430420628,0.1267024,3799.5,3798.8,2.63235]
[1717430420878,3.18201,3799.4,3798.4,2.63266]
[1717430421025,3.18201,3799.4,3797.6,7.41]
[1717430421230,3.18201,3799.4,3797.5,2.3495]
[1717430421231,3.18201,3799.4,3798.3,2.63271]
[1717430421657,2.63201,3799.4,3798.4,1.32126577]
[1717430422212,2.63222,3799.1,3797.9,2.63299]
[1717430422359,2.63222,3799.1,3798.0,1.32126577]
[1717430424189,4.97022,3799.1,3797.9,5.63299]
[1717430424390,1.20502559,3799.0,3798.0,3.0]
[1717430425056,4.97022,3799.1,3798.2,2.63279]
[1717430425257,4.97022,3799.1,3798.3,3.0]
[1717430425610,2.63222,3799.1,3798.3,3.0]
[1717430425768,1.58003591,3799.4,3798.5,2.63258]
[1717430425969,0.1267024,3799.5,3798.7,2.63246]
[1717430426292,0.1267024,3799.5,3798.8,1.94516835]
[1717430427194,2.63202,3799.4,3798.3,5.63272]
[1717430427413,2.63202,3799.4,3798.4,1.32126577]
[1717430428302,2.63202,3799.4,3798.5,2.63256]
[1717430428455,0.1267024,3799.5,3798.7,2.63247]
[1717430428662,0.1267024,3799.5,3798.5,1.899]
[1717430428663,0.1267024,3799.5,3798.9,2.63233]
[1717430428912,0.1267024,3799.5,3798.9,3.95359577]
[1717430431180,0.1267024,3799.5,3798.9,2.63233]
[1717430432834,0.1267024,3799.5,3798.5,2.63259]
[1717430433064,2.7586524,3799.5,3798.6,4.32126577]
[1717430433562,4.90763865,3799.5,3798.6,4.32126577]
[1717430434035,0.56895103,3799.4,3798.6,4.32126577]
[1717430434490,4.33907193,3799.5,3798.6,5.01665135]
[1717430434695,2.7586524,3799.5,3798.7,2.63246]
[1717430435108,0.1267024,3799.5,3798.7,3.95372577]
[1717430435304,0.1267024,3799.5,3799.0,2.63223]
[1717430435545,0.1267024,3799.5,3799.1,1.32126577]
[1717430437303,0.1267024,3799.5,3799.1,1.71661535]
[1717430437840,0.1267024,3799.5,3799.2,2.63212]
[1717430438737,0.1267024,3799.5,3799.3,1.32126577]
[1717430439710,0.1267024,3799.5,3799.2,2.63212]
[1717430440933,0.1267024,3799.5,3799.4,2.63199]
[1717430441143,0.1267024,3799.5,3799.4,7.25598973]
[1717430442554,0.1267024,3799.5,3798.9,2.63231]
[1717430442870,0.1267024,3799.5,3799.0,1.32126577]
[1717430443442,0.1267024,3799.5,3799.1,2.63216]
[1717430443642,0.1267024,3799.5,3799.2,1.32126577]
[1717430445724,0.1267024,3799.5,3799.3,2.63206]
[1717430445930,0.1267024,3799.5,3799.4,4.71659835]
[1717430446859,0.1267024,3799.5,3799.4,3.39533258]
[1717430447063,0.1267024,3799.5,3799.4,0.39533258]
[1717430447371,0.1267024,3799.5,3799.4,3.0]
[1717430447529,0.1267024,3799.5,3799.0,3.0]
[1717430447737,0.1267024,3799.5,3799.2,2.63213]
[1717430448037,0.1267024,3799.5,3799.4,2.63199]
[1717430448233,0.1267024,3799.5,3799.4,6.95325577]
[1717430448433,0.1267024,3799.5,3799.4,8.17930135]
[1717430448629,0.90847946,3800.2,3799.7,2.63173]
[1717430448838,0.0847078,3800.2,3799.8,4.32126577]
[1717430452266,0.0839078,3800.2,3799.8,4.32126577]
[1717430457791,0.0839078,3800.2,3799.8,4.30645577]
[1717430457983,0.0839078,3800.2,3799.9,0.69381858]
[1717430458291,0.0839078,3800.2,3799.9,2.01508435]
[1717430458472,0.0839078,3800.2,3799.9,0.69381858]
[1717430459355,0.0839078,3800.2,3799.9,2.01508435]
[1717430460288,0.0839078,3800.2,3799.9,0.69381858]
[1717430460741,4.79868197,3800.6,3799.9,0.69381858]
[1717430460955,4.79868197,3800.6,3799.8,3.0]
[1717430461184,3.21884946,3800.6,3799.8,4.32126577]
[1717430461347,1.39250158,3800.5,3799.8,4.32126577]
[1717430461546,2.97230692,3800.5,3799.8,4.32126577]
[1717430461947,4.21111534,3800.4,3799.3,2.63201]
[1717430462251,4.21111534,3800.4,3798.7,10.181]
[1717430462252,2.4755,3800.1,3798.9,2.6323]
[1717430462493,2.403577,3799.8,3799.0,1.32126577]
[1717430462841,1.57980534,3799.7,3798.9,2.6323]
[1717430463082,1.57980534,3799.7,3799.0,1.32126577]
[1717430463286,3.07380391,3799.7,3798.9,2.6323]
[1717430463535,0.82377166,3799.5,3798.3,2.6327]
[1717430463786,5.05829,3799.3,3798.3,2.6327]
[1717430463989,2.403577,3799.1,3798.4,1.32126577]
[1717430464173,1.57980534,3799.1,3798.4,1.32126577]
[1717430464496,2.14853526,3799.0,3798.4,1.32126577]
[1717430464692,0.82377166,3799.2,3798.4,1.32126577]
[1717430464693,2.63223,3799.1,3798.4,1.32126577]
[1717430464853,2.14943335,3798.9,3798.4,1.32126577]
[1717430465051,1.5804657,3798.8,3798.4,1.32126577]
[1717430465476,1.5804657,3798.9,3798.4,1.32126577]
[1717430465674,1.5804657,3799.1,3798.4,1.32126577]
[1717430465882,2.14943469,3799.3,3798.4,1.32126577]
[1717430466209,1.5804657,3799.4,3798.5,0.39540458]
[1717430466419,0.56890627,3799.3,3798.6,1.32126577]
[1717430466593,4.78124146,3799.4,3798.6,1.32126577]
[1717430466922,0.56890627,3799.3,3798.6,1.32126577]
[1717430467054,1.58029519,3799.2,3798.6,1.32126577]
[1717430467257,1.58029519,3799.2,3798.3,3.0]
[1717430467454,2.6322,3799.1,3798.4,1.32126577]
[1717430467756,2.14920146,3799.0,3798.1,3.0]
[1717430467956,1.58029519,3798.8,3798.2,1.32126577]
[1717430468206,1.58029519,3798.8,3798.1,0.08103637]
[1717430468207,4.6144125,3798.8,3798.1,0.08103637]
[1717430468359,1.58029519,3798.6,3798.1,0.08103637]
[1717430468764,4.21294519,3798.5,3798.1,0.08103637]
[1717430468962,2.14920146,3798.4,3798.1,0.08103637]
[1717430469157,2.63282,3798.2,3798.1,0.08103637]
[1717430469389,6.7166068,3798.2,3798.1,0.08103637]
[1717430469759,4.31253995,3798.2,3798.1,0.08103637]
[1717430470073,5.41090217,3798.2,3798.1,0.08103637]
[1717430470280,4.31253995,3798.2,3798.1,0.08103637]
[1717430470608,9.70890217,3798.2,3798.1,0.08103637]
[1717430470802,8.61053995,3798.2,3798.1,0.08103637]
[1717430471011,9.93180572,3798.2,3798.1,0.08103637]
[1717430471163,8.61053995,3798.2,3798.1,0.08103637]
[1717430471980,8.61062953,3798.2,3798.1,0.08103637]
[1717430472364,9.98522255,3798.2,3798.1,0.08103637]
[1717430472579,9.98522255,3798.2,3798.1,6.37e-06]
[1717430472580,11.30648832,3798.2,3798.1,6.37e-06]
[1717430472816,2.63367,3797.0,3795.9,2.4437]
[1717430472965,2.63367,3797.0,3796.0,2.12441327]
[1717430473166,2.63367,3797.0,3796.0,5.12441327]
[1717430474162,2.63367,3797.0,3796.0,2.12441327]
[1717430476063,2.63367,3797.0,3796.0,5.12441327]
[1717430476269,2.63367,3797.0,3796.0,1.32126577]
[1717430476624,2.63395,3796.6,3795.7,0.41254428]
[1717430476818,2.63395,3796.6,3795.7,1.73381005]
[1717430477108,2.63395,3796.6,3795.7,1.32126577]
[1717430477312,2.63395,3796.6,3795.7,1.98424235]
[1717430477631,2.63395,3796.6,3795.7,1.32126577]
[1717430478136,2.63421,3796.2,3795.4,2.3085]
[1717430478421,2.63449,3795.8,3795.1,0.41260292]
[1717430478727,2.63449,3795.8,3795.2,1.32126577]
[1717430479216,2.63421,3796.3,3795.2,1.49465264]
[1717430479575,2.63443,3795.9,3794.8,2.3739]
[1717430479775,1.899,3795.7,3794.8,2.3739]
[1717430479971,2.63443,3795.9,3794.8,2.3739]
[1717430480371,2.63443,3795.9,3794.7,2.63519]
[1717430480372,4.99753,3795.9,3794.9,1.32126577]
[1717430480805,2.63443,3795.9,3794.9,1.32126577]
[1717430481004,3.0,3796.6,3795.1,3.95619577]
[1717430481005,2.634,3796.6,3795.1,3.95619577]
[1717430481281,6.89758,3796.1,3795.0,0.39564558]
[1717430481484,0.2634,3796.9,3795.1,1.32126577]
[1717430481485,2.4412,3796.8,3795.1,1.32126577]
[1717430481732,2.63395,3796.6,3795.2,2.2904]
[1717430482048,0.2634,3796.5,3795.2,7.92529]
[1717430482180,0.2634,3796.5,3795.3,0.92465558]
[1717430482381,0.20797855,3797.2,3795.3,0.92465558]
[1717430482382,2.63363,3797.1,3795.4,3.95600577]
[1717430482578,1.899,3796.0,3795.0,1.054494]
[1717430482883,2.4069,3796.9,3795.1,1.32126577]
[1717430482884,2.63448,3795.9,3795.1,1.32126577]
[1717430483094,2.897928,3795.9,3795.1,1.32126577]
[1717430483323,5.05058,3795.9,3794.5,2.63536]
[1717430483640,2.63448,3795.9,3794.7,2.63523]
[1717430483920,2.1624,3796.4,3794.9,2.6351]
[1717430483921,2.89752,3796.4,3794.9,2.6351]
[1717430484080,2.89752,3796.4,3795.0,1.71690235]
[1717430484476,2.89752,3796.4,3795.0,1.32126577]
[1717430484477,2.63447,3795.9,3795.0,1.32126577]
[1717430484699,2.63447,3795.9,3794.5,3.0]
[1717430485038,2.63447,3795.9,3794.6,1.32126577]
[1717430485242,2.63472,3795.5,3794.6,1.32126577]
[1717430485799,4.3422,3795.6,3793.9,6.147234]
[1717430486002,2.63528,3794.7,3793.4,4.94329]
[1717430486702,2.63528,3794.7,3793.5,1.7340711]
[1717430486903,2.63528,3794.7,3793.6,0.77323351]
[1717430487213,2.63528,3794.7,3793.7,1.32126577]
[1717430487910,2.63495,3795.2,3793.7,3.95714577]
[1717430488113,2.63461,3795.7,3794.3,2.63551]
[1717430488340,2.63461,3795.7,3794.4,1.32126577]
[1717430488514,2.63461,3795.7,3794.5,0.39567758]
[1717430488711,2.63461,3795.7,3794.6,1.3739651]
[1717430488926,2.63461,3795.7,3794.7,2.4719]
[1717430489142,2.63461,3795.7,3794.8,1.32126577]